bitfinex/quotes_SOLUSD_20260306
["timestamp","ask_amount","ask_price","bid_price","bid_amount"]
[1772790188669,11.4531794,87.312,87.277,0.68954131]
[1772790189989,11.4531794,87.504,87.258,57.30125599]
[1772790189990,28.62624559,87.333,87.279,0.68954131]
[1772790190179,11.45161091,87.324,87.279,0.68954131]
[1772790190376,28.62918296,87.324,87.279,0.68954131]
[1772790190574,11.73750254,87.312,87.279,0.68954131]
[1772790190900,3.66624805,87.31,87.279,0.68954131]
[1772790191970,3.66624805,87.31,87.273,0.68954131]
[1772790191971,0.28432314,87.307,87.273,0.68954131]
[1772790192377,11.45370412,87.308,87.273,0.68954131]
[1772790194290,0.28432314,87.307,87.275,0.68954131]
[1772790197013,40.08888277,87.306,87.275,0.68954131]
[1772790197298,0.28432314,87.305,87.275,0.68954131]
[1772790198071,0.28432314,87.305,87.277,0.68954131]
[1772790200295,3.66624805,87.29,87.252,12.15059664]
[1772790200496,0.28432314,87.289,87.253,0.68954131]
[1772790201200,0.28432314,87.303,87.253,0.68954131]
[1772790202280,9.4,87.317,87.255,0.68954131]
[1772790202511,0.28432314,87.312,87.255,0.68954131]
[1772790202799,4.39085238,87.321,87.256,0.68954131]
[1772790202800,11.45262146,87.317,87.256,0.68954131]
[1772790203102,4.39085238,87.321,87.259,0.68954131]
[1772790203802,3.66624805,87.35,87.259,0.68954131]
[1772790203803,0.18381996,87.366,87.263,0.60750572]
[1772790203986,0.18381996,87.366,87.265,0.28432314]
[1772790204191,28.61636935,87.363,87.269,234.90586576]
[1772790204407,28.61636935,87.363,87.274,0.60750572]
[1772790204699,11.44623132,87.365,87.279,0.60750572]
[1772790204882,0.28432314,87.364,87.283,0.60750572]
[1772790205089,0.28432314,87.364,87.286,0.60750572]
[1772790205406,0.18334962,87.363,87.288,0.60750572]
[1772790205592,0.1828778,87.358,87.288,0.60750572]
[1772790206110,0.28432314,87.359,87.288,0.60750572]
[1772790206111,0.28432314,87.364,87.29,0.60750572]
[1772790206293,0.28432314,87.362,87.294,3.69383402]
[1772790206499,0.28432314,87.362,87.296,0.60750572]
[1772790207089,0.18242385,87.359,87.296,0.60750572]
[1772790208612,40.06501979,87.358,87.301,0.60750572]
[1772790208797,0.18151691,87.357,87.301,0.60750572]
[1772790210606,0.18062628,87.347,87.303,0.60750572]
[1772790210906,11.44845903,87.348,87.303,0.60750572]
[1772790211605,0.17933634,87.36,87.303,0.60750572]
[1772790212195,0.28432314,87.356,87.303,0.60750572]
[1772790212396,11.44729433,87.357,87.303,0.60750572]
[1772790212806,0.17891456,87.355,87.305,0.61848358]
[1772790213193,0.17891456,87.348,87.305,0.61848358]
[1772790213392,0.17891456,87.355,87.305,0.61848358]
[1772790213824,0.17850276,87.362,87.305,0.61848358]
[1772790214396,0.28432314,87.368,87.305,0.61848358]
[1772790214598,0.1,87.37,87.308,0.61848358]
[1772790214896,0.1,87.37,87.314,0.61848358]
[1772790215304,0.27808964,87.37,87.314,0.61848358]
[1772790216297,0.1,87.37,87.315,1.76376216]
[1772790216498,0.1,87.37,87.317,0.61848358]
[1772790216816,7.77213288,87.379,87.323,3.69383402]
[1772790216993,11.44452837,87.378,87.325,0.61848358]
[1772790217396,7.77213288,87.379,87.325,0.61848358]
[1772790217803,11.44452837,87.378,87.325,0.61848358]
[1772790218900,11.44452837,87.378,87.33,0.61848358]
[1772790219822,7.77213288,87.379,87.33,0.61848358]
[1772790220895,7.77213288,87.379,87.331,40.07740664]
[1772790221100,7.77213288,87.379,87.332,0.61848358]
[1772790221313,0.17574125,87.378,87.332,0.61848358]
[1772790221614,7.77213288,87.379,87.332,0.61848358]
[1772790222514,7.77213288,87.379,87.334,0.61848358]
[1772790222915,7.77213288,87.379,87.335,40.07557107]
[1772790223108,7.77213288,87.379,87.336,0.61848358]
[1772790223817,0.1,87.39,87.339,0.61848358]
[1772790224022,0.1,87.4,87.34,0.61848358]
[1772790224223,11.61640582,87.399,87.34,0.61848358]
[1772790225107,11.61640582,87.399,87.343,0.61848358]
[1772790225307,0.1,87.4,87.343,0.61848358]
[1772790225819,0.1,87.4,87.346,0.61848358]
[1772790226021,0.17390103,87.399,87.346,0.61848358]
[1772790226430,11.61567954,87.399,87.346,0.61848358]
[1772790226806,0.17354538,87.397,87.346,0.61848358]
[1772790227012,0.17354538,87.394,87.348,0.61848358]
[1772790230331,0.17251011,87.391,87.35,0.61848358]
[1772790231617,0.17183402,87.379,87.34,11.44950767]
[1772790231825,0.17183402,87.379,87.341,0.61848358]
[1772790232418,0.17183402,87.377,87.343,0.61848358]
[1772790233021,0.17150447,87.385,87.343,0.61848358]
[1772790234628,0.17084951,87.393,87.345,0.61848358]
[1772790236209,40.04622478,87.399,87.345,0.61848358]
[1772790236436,11.44177851,87.399,87.345,0.61848358]
[1772790236632,0.1,87.4,87.347,0.61848358]
[1772790236832,0.17020967,87.399,87.347,0.61848358]
[1772790238533,0.1,87.4,87.348,0.61848358]
[1772790238741,0.1,87.4,87.35,0.61848358]
[1772790239740,0.16927537,87.399,87.35,0.61848358]
[1772790240535,0.1,87.4,87.353,0.61848358]
[1772790240836,0.1,87.4,87.355,0.61848358]
[1772790241043,0.16897143,87.399,87.355,0.61848358]
[1772790242349,0.16836882,87.398,87.355,0.61848358]
[1772790242842,0.16807518,87.389,87.351,0.6088932]
[1772790243021,0.16807518,87.387,87.352,11.44793479]
[1772790243221,0.16807518,87.387,87.352,12.05682799]
[1772790243437,0.16807518,87.387,87.353,0.6088932]
[1772790243635,0.16779226,87.379,87.337,12.05879415]
[1772790243920,0.16779226,87.379,87.338,0.6088932]
[1772790244938,0.28432314,87.376,87.338,0.6088932]
[1772790245226,0.16749921,87.375,87.339,11.44963876]
[1772790245626,0.16749921,87.375,87.34,0.6088932]
[1772790246849,0.16749921,87.375,87.338,11.44963977]
[1772790247642,0.16666064,87.368,87.325,0.6088932]
[1772790247846,0.16666064,87.359,87.336,14.3750892]
[1772790248147,0.28432314,87.361,87.318,0.63496337]
[1772790248444,0.28432314,87.359,87.318,0.63496337]
[1772790249048,40.05768305,87.374,87.318,0.63496337]
[1772790249227,3.65865265,87.39,87.318,0.63496337]
[1772790249742,40.0508073,87.389,87.324,0.63496337]
[1772790251133,11.4430878,87.389,87.324,0.63496337]
[1772790251730,0.14216157,87.398,87.329,0.63496337]
[1772790251930,0.14216157,87.398,87.33,0.63496337]
[1772790252946,0.14216157,87.398,87.332,0.63496337]
[1772790254353,0.14216157,87.398,87.334,0.63496337]
[1772790255542,11.44177851,87.399,87.335,0.63496337]
[1772790255754,0.1,87.4,87.338,0.63496337]
[1772790256265,0.1,87.4,87.344,0.63496337]
[1772790256954,0.1,87.42,87.347,0.63496337]
[1772790257157,0.1,87.42,87.349,0.63496337]
[1772790257340,0.1,87.42,87.351,0.63496337]
[1772790257536,1e-08,87.424,87.353,0.63496337]
[1772790257740,1e-08,87.424,87.351,1.14480658]
[1772790257741,1e-08,87.424,87.356,0.63496337]
[1772790257936,1e-08,87.424,87.344,57.61356084]
[1772790257937,0.1,87.44,87.363,0.63496337]
[1772790258248,0.1,87.44,87.357,1.14472795]
[1772790258249,0.1,87.44,87.373,0.63496337]
[1772790258440,0.1,87.44,87.375,0.91928651]
[1772790258757,0.1,87.44,87.379,0.63496337]
[1772790259663,15.19250804,87.46,87.376,0.63496337]
[1772790259845,3.75865265,87.45,87.376,0.63496337]
[1772790260047,0.28432314,87.449,87.376,0.63496337]
[1772790260247,0.28432314,87.447,87.381,0.63496337]
[1772790262358,0.28432314,87.445,87.386,0.63496337]
[1772790262740,11.43562884,87.446,87.387,0.63496337]
[1772790263749,0.1,87.45,87.387,0.63496337]
[1772790264145,0.14216157,87.449,87.387,0.63496337]
[1772790264660,3.65865265,87.44,87.391,3.69383402]
[1772790264841,3.65865265,87.43,87.388,11.44321874]
[1772790265042,3.65865265,87.43,87.389,0.63496337]
[1772790265563,3.65865265,87.44,87.389,0.63496337]
[1772790266237,0.28432314,87.449,87.389,0.63496337]
[1772790266462,3.65865265,87.44,87.389,0.63496337]
[1772790266760,3.65865265,87.43,87.391,0.63496337]
[1772790266946,40.02790516,87.439,87.391,0.63496337]
[1772790268067,3.65865265,87.44,87.393,0.63496337]
[1772790268960,0.28432314,87.449,87.393,0.63496337]
[1772790269364,11.53510577,87.45,87.393,0.63496337]
[1772790269664,15.19375842,87.45,87.393,0.63496337]
[1772790269963,3.65865265,87.44,87.394,40.0485159]
[1772790270150,3.75865265,87.45,87.395,0.63496337]
[1772790270962,0.28432314,87.449,87.395,0.63496337]
[1772790271163,3.65865265,87.44,87.395,0.63496337]
[1772790272348,11.43654433,87.439,87.397,0.63496337]
[1772790274160,11.43523653,87.449,87.397,0.63496337]
[1772790274465,0.1,87.45,87.399,0.63496337]
[1772790276466,0.1,87.45,87.402,0.63496337]
[1772790277556,3.75865265,87.45,87.402,0.63496337]
[1772790277868,0.1,87.45,87.402,0.63496337]
[1772790278469,3.75865265,87.45,87.402,0.63496337]
[1772790278670,11.43523653,87.449,87.404,0.63496337]
[1772790279254,3.65865265,87.44,87.403,11.44125487]
[1772790279659,0.28432314,87.448,87.404,0.63496337]
[1772790280050,3.65865265,87.44,87.404,0.63496337]
[1772790280256,0.28432314,87.448,87.404,0.63496337]
[1772790280462,3.65865265,87.44,87.404,0.63496337]
[1772790281049,0.28432314,87.446,87.406,0.63496337]
[1772790282558,3.65865265,87.44,87.405,11.44099307]
[1772790282759,0.28432314,87.439,87.391,11.44282592]
[1772790282964,0.28432314,87.437,87.392,0.63496337]
[1772790283167,0.28432314,87.437,87.373,0.63496337]
[1772790284554,11.43560953,87.447,87.376,0.63496337]
[1772790284750,0.28432314,87.446,87.377,0.63496337]
[1772790285758,11.43575962,87.445,87.382,0.63496337]
[1772790286071,11.43575962,87.445,87.383,0.63496337]
[1772790286459,0.1,87.45,87.386,0.63496337]
[1772790286856,0.1,87.45,87.389,0.63496337]
[1772790287776,0.1,87.45,87.395,0.63496337]
[1772790289579,0.1,87.45,87.398,0.63496337]
[1772790290466,0.1,87.45,87.4,0.63496337]
[1772790290664,0.1,87.45,87.402,0.63496337]
[1772790291460,0.1,87.46,87.404,0.63496337]
[1772790291781,0.1,87.46,87.405,0.63496337]
[1772790293078,0.1,87.46,87.408,0.63496337]
[1772790294890,0.1,87.46,87.41,0.63496337]
[1772790295275,0.1,87.46,87.413,0.63496337]
[1772790295669,3.75106638,87.46,87.413,0.63496337]
[1772790296083,0.1,87.46,87.413,0.63496337]
[1772790297784,0.1,87.46,87.411,40.04072713]
[1772790297785,0.1,87.46,87.415,0.63496337]
[1772790298880,3.75106638,87.46,87.415,0.63496337]
[1772790299479,0.1,87.46,87.415,0.63496337]
[1772790299683,0.1,87.46,87.394,3.69383402]
[1772790299684,0.1,87.46,87.417,0.63496337]
[1772790300980,0.28432314,87.459,87.417,0.63496337]
[1772790301366,0.1,87.46,87.417,0.63496337]
[1772790301583,0.1,87.46,87.419,0.63496337]
[1772790302389,3.65106638,87.44,87.378,0.63496337]
[1772790302680,0.28432314,87.439,87.378,0.63496337]
[1772790302888,3.75106638,87.46,87.378,0.63496337]
[1772790303086,0.28432314,87.459,87.378,0.63496337]
[1772790303400,0.1,87.46,87.379,0.63496337]
[1772790303569,0.1,87.46,87.381,0.63496337]
[1772790303770,0.1,87.46,87.387,0.63496337]
[1772790304991,0.1,87.46,87.393,0.63496337]
[1772790306769,3.65106638,87.43,87.393,0.63496337]
[1772790306985,0.28432314,87.439,87.395,0.63496337]
[1772790307184,15.08747992,87.44,87.395,0.63496337]
[1772790307185,11.43641354,87.44,87.395,0.63496337]
[1772790307910,11.43523653,87.449,87.395,0.63496337]
[1772790309185,0.28432314,87.458,87.397,0.63496337]
[1772790309574,11.43392904,87.459,87.398,0.63496337]
[1772790311077,40.01875164,87.459,87.398,0.63496337]
[1772790311484,40.01875164,87.459,87.4,0.63496337]
[1772790311676,11.43392904,87.459,87.4,0.63496337]
[1772790312287,0.28432314,87.458,87.4,0.63496337]
[1772790313592,3.65106638,87.45,87.402,0.63496337]
[1772790314497,0.28432314,87.456,87.402,0.63496337]
[1772790315083,11.43419051,87.457,87.402,0.63496337]
[1772790315283,0.1,87.46,87.402,0.63496337]
[1772790315595,7.05651782,87.489,87.411,0.63496337]
[1772790315784,12.13776562,87.473,87.412,0.63496337]
[1772790316583,3.65106638,87.47,87.412,0.63496337]
[1772790317203,12.13776562,87.473,87.412,0.63496337]
[1772790317204,0.28432314,87.472,87.412,0.63496337]
[1772790317503,3.65106638,87.47,87.412,0.63496337]
[1772790318197,3.65106638,87.47,87.4,0.28432314]
[1772790318198,11.43262184,87.469,87.414,0.63496337]
[1772790319091,0.28432314,87.472,87.414,0.91928651]
[1772790319297,0.70559801,87.473,87.417,0.63496337]
[1772790319609,0.70559801,87.473,87.418,0.63496337]
[1772790319984,0.70559801,87.473,87.423,0.63496337]
[1772790321304,0.1,87.48,87.424,0.63496337]
[1772790322002,0.1,87.48,87.428,3.69383402]
[1772790322194,0.1,87.48,87.43,0.63496337]
[1772790324291,0.1,87.48,87.432,0.63496337]
[1772790325194,0.1,87.48,87.433,0.63496337]
[1772790325391,0.1,87.49,87.434,0.63496337]
[1772790325591,0.1,87.5,87.437,0.63496337]
[1772790326312,0.1,87.5,87.442,0.63496337]
[1772790326607,3.75106638,87.5,87.442,0.63496337]
[1772790326796,0.1,87.5,87.442,0.63496337]
[1772790328304,0.1,87.5,87.449,0.63496337]
[1772790330409,0.1,87.5,87.454,0.63496337]
[1772790331010,0.1,87.5,87.455,0.63496337]
[1772790332309,0.1,87.5,87.456,142.92901571]
[1772790332615,0.1,87.5,87.458,0.63496337]
[1772790334520,0.1,87.5,87.46,0.63496337]
[1772790334717,0.1,87.5,87.463,0.63496337]
[1772790336623,0.1,87.5,87.465,0.63496337]
[1772790338013,3.65106638,87.49,87.445,11.43575962]
[1772790338217,0.28432314,87.489,87.446,0.63496337]
[1772790340032,3.65106638,87.49,87.448,0.63496337]
[1772790340710,0.1,87.5,87.448,0.63496337]
[1772790341105,0.1,87.5,87.449,0.63496337]
[1772790341622,0.1,87.5,87.451,0.63496337]
[1772790342137,0.1,87.5,87.453,0.63496337]
[1772790342918,11.42609033,87.519,87.456,0.63496337]
[1772790343118,0.1,87.52,87.457,0.63496337]
[1772790343826,3.65106638,87.5,87.457,0.63496337]
[1772790344016,3.65106638,87.5,87.452,40.02195489]
[1772790344017,0.28432314,87.499,87.452,40.02195489]
[1772790344213,0.28432314,87.497,87.452,40.02195489]
[1772790344727,0.28432314,87.497,87.317,31.84111304]
[1772790344728,3.65106638,87.48,87.44,0.63496337]
[1772790345316,0.28432314,87.491,87.44,0.63496337]
[1772790345530,0.28432314,87.489,87.44,0.63496337]
[1772790346132,3.65106638,87.49,87.44,0.63496337]
[1772790346342,11.43000834,87.489,87.442,0.63496337]
[1772790347429,11.71328641,87.497,87.442,0.63496337]
[1772790347614,11.42843779,87.502,87.442,0.63496337]
[1772790347927,3.75106638,87.52,87.445,0.63496337]
[1772790348130,11.42609033,87.519,87.446,0.63496337]
[1772790348317,11.42609033,87.519,87.441,97.20840337]
[1772790348318,11.42609033,87.519,87.451,0.63496337]
[1772790349134,0.28432314,87.518,87.451,0.63496337]
[1772790349522,0.14216157,87.518,87.451,0.63496337]
[1772790349730,0.28432314,87.518,87.451,0.63496337]
[1772790350234,11.42609033,87.519,87.456,0.63496337]
[1772790350729,11.42609033,87.519,87.457,0.63496337]
[1772790351310,39.99131616,87.519,87.457,0.63496337]
[1772790352327,39.99588612,87.509,87.459,0.63496337]
[1772790352838,0.28432314,87.508,87.459,0.63496337]
[1772790353537,11.42739603,87.509,87.459,0.63496337]
[1772790354220,0.28432314,87.518,87.461,0.63496337]
[1772790354925,0.14216157,87.518,87.461,0.63496337]
[1772790355123,39.99135158,87.519,87.461,0.63496337]
[1772790356230,0.14216157,87.518,87.461,0.63496337]
[1772790356430,0.14216157,87.518,87.463,0.63496337]
[1772790357425,11.42609033,87.519,87.463,0.63496337]
[1772790358640,11.42609033,87.519,87.465,0.63496337]
[1772790358832,39.99131616,87.519,87.465,0.63496337]
[1772790360145,0.28432314,87.518,87.465,0.63496337]
[1772790360756,3.64738265,87.51,87.467,0.63496337]
[1772790361061,0.28432314,87.516,87.467,0.63496337]
[1772790361551,0.28432314,87.516,87.466,40.01554889]
[1772790361552,0.28432314,87.509,87.466,40.01554889]
[1772790361747,0.28432314,87.509,87.466,11.43301397]
[1772790362041,3.64738265,87.48,87.423,0.63496337]
[1772790362649,39.99223007,87.517,87.428,0.63496337]
[1772790362940,39.99223007,87.517,87.434,0.63496337]
[1772790362941,0.14216157,87.514,87.434,0.63496337]
[1772790363133,0.14216157,87.509,87.434,0.63496337]
[1772790363335,3.64738265,87.5,87.436,0.63496337]
[1772790363536,11.42661258,87.515,87.436,0.63496337]
[1772790363740,0.28432314,87.514,87.439,0.63496337]
[1772790363945,11.52598015,87.52,87.439,0.63496337]
[1772790364444,11.52598015,87.52,87.443,0.63496337]
[1772790364641,0.1,87.52,87.446,0.63496337]
[1772790364828,0.1,87.52,87.451,0.63496337]
[1772790365035,0.1,87.52,87.452,0.63496337]
[1772790367043,0.1,87.52,87.457,0.28432314]
[1772790367248,0.1,87.52,87.458,0.63496337]
[1772790368948,0.1,87.52,87.463,0.63496337]
[1772790369346,3.74738265,87.52,87.463,0.63496337]
[1772790370158,0.1,87.52,87.463,0.91928651]
[1772790370355,0.1,87.52,87.464,0.63496337]
[1772790370939,3.64738265,87.51,87.466,0.63496337]
[1772790372754,0.28432314,87.518,87.466,0.63496337]
[1772790372934,0.28432314,87.516,87.467,11.43288325]
[1772790373249,3.64738265,87.51,87.467,40.01509139]
[1772790374237,3.64738265,87.5,87.467,11.43288325]
[1772790374965,11.43000834,87.489,87.446,28.58877998]
[1772790375254,40.00502919,87.489,87.446,28.58877998]
[1772790375636,11.43000834,87.489,87.447,0.63496337]
[1772790377180,28.5718588,87.499,87.448,11.4353673]
[1772790377181,9.1235797,87.48,87.448,11.4353673]
[1772790377454,9.1235797,87.48,87.401,57.36522161]
[1772790377455,9.1235797,87.48,87.436,28.59214713]
[1772790377657,9.1235797,87.46,87.437,11.43680592]
[1772790378852,9.1235797,87.46,87.427,11.43811408]
[1772790379040,11.43392904,87.459,87.42,11.43902997]
[1772790379244,9.1235797,87.45,87.42,11.43902997]
[1772790379641,0.28432314,87.449,87.411,0.63496337]
[1772790379862,9.1235797,87.43,87.4,10.8865815]
[1772790380062,9.1235797,87.41,87.4,10.8865815]
[1772790380246,9.1235797,87.41,87.382,11.44390697]
[1772790380442,9.1235797,87.42,87.383,0.63496337]
[1772790380966,9.1235797,87.41,87.373,0.63496337]
[1772790381159,9.1235797,87.4,87.364,12.08132571]
[1772790381362,0.28432314,87.399,87.358,11.44705653]
[1772790381563,0.28432314,87.399,87.358,40.06492781]
[1772790381755,0.28432314,87.399,87.359,0.63496337]
[1772790382155,0.28432314,87.399,87.347,28.62123288]
[1772790382156,9.1235797,87.39,87.349,11.44832797]
[1772790382349,9.1235797,87.38,87.346,1.15098487]
[1772790382666,9.1235797,87.38,87.347,11.4485901]
[1772790382848,9.1235797,87.38,87.346,1.15098487]
[1772790382849,9.1235797,87.37,87.346,1.15098487]
[1772790383049,9.1235797,87.36,87.346,1.15098487]
[1772790383257,9.1235797,87.37,87.346,1.15098487]
[1772790383455,11.44570728,87.369,87.346,1.15098487]
[1772790383663,0.28432314,87.368,87.346,1.15098487]
[1772790384247,9.1235797,87.36,87.346,1.15098487]
[1772790384866,9.1235797,87.36,87.32,0.2]
[1772790384867,0.28432314,87.359,87.32,0.2]
[1772790385049,9.1235797,87.35,87.32,0.2]
[1772790385562,9.1235797,87.36,87.326,0.63496337]
[1772790385765,0.28432314,87.359,87.32,11.65211626]
[1772790385967,9.1235797,87.35,87.32,11.65211626]
[1772790386158,9.1235797,87.35,87.324,11.45154091]
[1772790386475,0.28432314,87.359,87.33,11.65069765]
[1772790386660,9.1235797,87.35,87.33,0.2]
[1772790387050,9.1235797,87.36,87.33,0.2]
[1772790387251,0.28432314,87.367,87.331,0.63496337]
[1772790387758,9.1235797,87.37,87.331,0.63496337]
[1772790387759,9.1235797,87.37,87.332,0.63496337]
[1772790387954,11.44499446,87.375,87.332,0.63496337]
[1772790388172,0.28432314,87.374,87.332,0.63496337]
[1772790388368,9.1235797,87.37,87.332,0.63496337]
[1772790389081,9.1235797,87.36,87.332,0.63496337]
[1772790389265,0.28432314,87.369,87.332,0.63496337]
[1772790389874,3.49,88.671,87.33,0.2]
[1772790389875,9.1235797,87.38,87.334,0.63496337]
[1772790390079,0.28432314,87.379,87.334,0.63496337]
[1772790390289,9.1235797,87.38,87.334,0.63496337]
[1772790391894,11.44439739,87.379,87.336,0.63496337]
[1772790392215,9.1235797,87.37,87.336,0.63496337]
[1772790392591,9.1235797,87.36,87.331,11.45068761]
[1772790393491,9.1235797,87.36,87.33,0.2]
[1772790394195,9.1235797,87.36,87.312,28.63293087]
[1772790394196,0.28432314,87.339,87.298,0.63496337]
[1772790394393,86.13695421,87.359,87.298,0.63496337]
[1772790394394,0.28432314,87.329,87.301,11.45462251]
[1772790394770,0.28432314,87.329,87.3,0.83496337]
[1772790395394,0.28432314,87.329,87.3,0.2]
[1772790395594,9.1235797,87.32,87.3,0.2]
[1772790395894,0.28432314,87.329,87.3,0.2]
[1772790396290,0.28432314,87.327,87.3,0.2]
[1772790396796,9.1235797,87.32,87.3,0.2]
[1772790398288,11.45226124,87.319,87.3,0.2]
[1772790399393,9.1235797,87.31,87.3,1e-08]
[1772790400576,11.45357294,87.309,87.3,1e-08]
[1772790400804,11.45357294,87.309,87.265,0.63496337]
[1772790400805,0.28432314,87.308,87.265,0.63496337]
[1772790401011,0.28432314,87.289,87.257,0.63496337]
[1772790401177,9.1235797,87.29,87.262,0.63496337]
[1772790401676,0.28432314,87.299,87.262,0.63496337]
[1772790401872,0.28432314,87.319,87.262,0.63496337]
[1772790402688,0.28432314,87.319,87.264,0.63496337]
[1772790402994,9.1235797,87.33,87.264,0.63496337]
[1772790403195,11.73527299,87.329,87.264,0.63496337]
[1772790404893,11.73527299,87.329,87.266,0.63496337]
[1772790406507,11.73527299,87.329,87.268,0.63496337]
[1772790407222,9.1235797,87.32,87.268,0.63496337]
[1772790409081,9.1235797,87.33,87.272,3.69383402]
[1772790409287,11.45022746,87.335,87.272,3.69383402]
[1772790409288,0.14216157,87.334,87.273,0.63496337]
[1772790409780,0.28432314,87.334,87.273,0.63496337]
[1772790410100,9.1235797,87.33,87.273,0.63496337]
[1772790410884,0.28432314,87.334,87.273,0.63496337]
[1772790411083,11.45094985,87.329,87.274,40.10358181]
[1772790411308,0.28432314,87.328,87.275,0.63496337]
[1772790412013,9.1235797,87.32,87.275,0.63496337]
[1772790412183,9.1235797,87.31,87.275,0.63496337]
[1772790412592,9.1235797,87.3,87.267,0.63496337]
[1772790412792,0.28432314,87.299,87.267,0.63496337]
[1772790413516,0.28432314,87.297,87.269,0.63496337]
[1772790414636,11.45501615,87.298,87.27,11.45869141]
[1772790414814,0.28432314,87.297,87.27,11.45869141]
[1772790415307,9.1235797,87.29,87.262,0.63496337]
[1772790416014,0.28432314,87.297,87.262,0.63496337]
[1772790416698,0.28432314,87.296,87.264,0.63496337]
[1772790417905,11.4545535,87.302,87.264,0.63496337]
[1772790418593,0.28432314,87.307,87.266,0.63496337]
[1772790419290,11.23789608,87.309,87.266,0.63496337]
[1772790421016,11.23789608,87.309,87.268,0.63496337]
[1772790421910,9.16515222,87.29,87.267,11.45908533]
[1772790422256,9.16515222,87.3,87.264,0.63496337]
[1772790422418,0.28432314,87.308,87.264,0.63496337]
[1772790422991,9.16515222,87.3,87.266,0.63496337]
[1772790423814,0.28432314,87.299,87.266,0.63496337]
[1772790423991,9.16515222,87.29,87.266,0.63496337]
[1772790424187,0.28432314,87.299,87.266,0.63496337]
[1772790425210,0.28432314,87.297,87.267,11.45908533]
[1772790427418,28.62442464,87.338,87.268,0.63496337]
[1772790427716,3.6661599,87.34,87.271,0.63496337]
[1772790428103,0.28432314,87.339,87.272,0.63496337]
[1772790428296,3.6661599,87.34,87.272,0.63496337]
[1772790428517,11.44885225,87.345,87.272,0.63496337]
[1772790428705,3.6661599,87.36,87.272,0.63496337]
[1772790429217,0.28432314,87.359,87.272,0.63496337]
[1772790429416,11.44701747,87.359,87.277,0.63496337]
[1772790429613,3.6661599,87.36,87.28,0.63496337]
[1772790429805,11.44646406,87.364,87.285,0.63496337]
[1772790430720,11.44559132,87.37,87.287,0.63496337]
[1772790430921,0.28432314,87.369,87.287,0.63496337]
[1772790431304,0.14216157,87.369,87.287,0.63496337]
[1772790431517,0.28432314,87.369,87.292,0.63496337]
[1772790431719,0.28432314,87.369,87.293,0.63496337]
[1772790432235,0.28432314,87.369,87.292,0.28432314]
[1772790432236,0.28432314,87.369,87.297,0.63496337]
[1772790432925,0.14216157,87.369,87.297,0.63496337]
[1772790433220,0.28432314,87.369,87.297,0.63496337]
[1772790433599,0.28432314,87.367,87.302,0.63496337]
[1772790433800,9.15018225,87.36,87.303,0.63496337]
[1772790434004,11.44583829,87.368,87.303,0.63496337]
[1772790434005,9.15018225,87.34,87.303,0.63496337]
[1772790434835,40.06043402,87.368,87.298,40.09255652]
[1772790434836,9.15018225,87.33,87.298,40.09255652]
[1772790435128,0.28432314,87.339,87.299,0.63496337]
[1772790435810,0.28432314,87.339,87.274,3.69383402]
[1772790435811,0.28432314,87.337,87.301,0.63496337]
[1772790436212,9.15018225,87.35,87.301,0.63496337]
[1772790438129,9.15018225,87.35,87.303,0.63496337]
[1772790438436,11.44832797,87.349,87.303,0.63496337]
[1772790438632,0.28432314,87.348,87.303,0.63496337]
[1772790439431,9.15018225,87.34,87.302,40.09071956]
[1772790439613,0.28432314,87.339,87.302,11.4544913]
[1772790439813,0.28432314,87.319,87.262,0.63496337]
[1772790440007,0.28432314,87.317,87.264,0.63496337]
[1772790440210,28.62975034,87.322,87.264,0.63496337]
[1772790440211,0.28432314,87.328,87.264,0.63496337]
[1772790441520,0.28432314,87.339,87.267,0.77712494]
[1772790441839,11.7339619,87.339,87.268,0.63496337]
[1772790442331,11.7339619,87.339,87.273,0.63496337]
[1772790442634,11.7339619,87.339,87.274,0.63496337]
[1772790443328,11.7339619,87.339,87.276,0.63496337]
[1772790445014,0.28432314,87.342,87.279,0.63496337]
[1772790445621,9.43450539,87.34,87.284,0.63496337]
[1772790446717,0.28432314,87.329,87.284,0.63496337]
[1772790447818,0.28432314,87.327,87.286,0.63496337]
[1772790448651,11.4500924,87.336,87.286,0.63496337]
[1772790450544,11.4500924,87.336,87.288,0.63496337]
[1772790451535,9.15018225,87.33,87.288,0.63496337]
[1772790451937,11.4500924,87.336,87.288,0.63496337]
[1772790452853,0.28432314,87.329,87.273,0.63496337]
[1772790453049,0.28432314,87.329,76.774,49.57884711]
[1772790453050,9.15018225,87.3,87.262,0.63496337]
[1772790453253,0.28432314,87.299,87.262,0.63496337]
[1772790456054,9.15018225,87.29,87.262,0.63496337]
[1772790456449,0.28432314,87.289,87.262,0.63496337]
[1772790456648,9.15018225,87.28,87.248,11.46154547]
[1772790456853,9.15018225,87.28,87.252,11.46095346]
[1772790457653,9.15018225,87.28,87.246,0.63496337]
[1772790457842,9.15018225,87.28,87.252,11.46096637]
[1772790458359,11.45750982,87.279,87.252,11.46096637]
[1772790460556,0.28432314,87.287,87.261,11.45987325]